fUSD/lending_fUSD_20240718
["ID","MTS","AMOUNT","RATE_DAILY","PERIOD"]
[332597936,1721328646471,-304.23231413,0.00032876,14]
[332597938,1721328646480,-500.0,0.00032876,14]
[332597940,1721328646490,-500.0,0.00032876,14]
[332597942,1721328646499,-500.0,0.00032876,14]
[332597944,1721328646508,-1781.77,0.00032876,14]
[332597946,1721328646518,-1883.54,0.00032876,14]
[332597948,1721328646528,-500.0,0.00032876,14]
[332597950,1721328646537,-1677.85,0.00032876,14]
[332597951,1721328646546,-500.0,0.00032876,14]
[332597953,1721328646556,-2495.09,0.00032876,14]
[332597955,1721328646565,-500.0,0.00032876,14]
[332597957,1721328646575,-500.0,0.00032876,14]
[332597959,1721328646584,-500.0,0.00032876,14]
[332597961,1721328646594,-500.0,0.00032876,14]
[332597963,1721328646603,-500.0,0.00032876,14]
[332597964,1721328646612,-500.0,0.00032876,14]
[332597966,1721328646622,-3030.61,0.00032876,14]
[332597968,1721328646632,-969.91,0.00032876,14]
[332597970,1721328646644,-2137.38,0.00032876,14]
[332597972,1721328646654,-563.78,0.00032876,14]
[332597974,1721328646665,-500.0,0.00032876,14]
[332597976,1721328646674,-1155.38,0.00032876,14]
[332597978,1721328646684,-500.0,0.00032876,14]
[332597980,1721328646693,-500.0,0.00032876,14]
[332597982,1721328646703,-500.0,0.00032876,14]
[332597984,1721328646712,-500.0,0.00032876,14]
[332597985,1721328646721,-500.0,0.00032876,14]
[332597995,1721328646807,-742.28,0.00032876,14]
[332597997,1721328646818,-500.0,0.00032876,14]
[332597999,1721328646828,-1070.58,0.00032876,14]
[332598001,1721328646839,-500.0,0.00032876,14]
[332598003,1721328646849,-2138.43,0.00032876,7]
[332598005,1721328646858,-500.0,0.00032876,14]
[332598007,1721328646867,-500.0,0.00032876,14]
[332598009,1721328646876,-500.0,0.00032876,14]
[332598010,1721328646885,-500.0,0.00032876,14]
[332598012,1721328646894,-500.0,0.00032876,14]
[332598014,1721328646903,-500.0,0.00032876,14]
[332598016,1721328646913,-3075.81,0.00032876,14]
[332598018,1721328646927,-500.0,0.00032876,14]
[332598020,1721328646937,-500.0,0.00032876,14]
[332598022,1721328646946,-500.0,0.00032876,14]
[332598024,1721328646956,-2448.24,0.00032876,14]
[332598026,1721328646967,-970.71,0.00032876,14]
[332598028,1721328646977,-500.0,0.00032876,14]
[332598031,1721328646988,-1035.39,0.00032876,14]
[332598032,1721328646998,-151.0,0.00032876,7]
[332598034,1721328647009,-526.07846649,0.00032876,14]
[332598037,1721328647019,-151.0,0.00032876,7]
[332598039,1721328647028,-151.0,0.00032876,7]
[332598040,1721328647040,-151.0,0.00032876,7]
[332598042,1721328647050,-151.0,0.00032876,7]
[332598044,1721328647059,-500.0,0.00032876,14]
[332598046,1721328647069,-151.0,0.00032876,7]
[332598048,1721328647078,-2573.44,0.00032876,14]
[332598050,1721328647087,-500.0,0.00032876,14]
[332598052,1721328647097,-1495.96,0.00032876,14]
[332598054,1721328647107,-151.0,0.00032876,7]
[332598056,1721328647117,-151.0,0.00032876,7]
[332598058,1721328647126,-500.0,0.00032876,14]
[332598060,1721328647135,-151.0,0.00032876,7]
[332598062,1721328647144,-151.0,0.00032876,7]
[332598064,1721328647154,-3872.46,0.00032876,14]
[332598066,1721328647164,-151.0,0.00032876,7]
[332598068,1721328647173,-500.0,0.00032876,14]
[332598070,1721328647183,-281.309198,0.00032876,7]
[332598072,1721328647192,-500.0,0.00032876,14]
[332598074,1721328647201,-500.0,0.00032876,14]
[332598076,1721328647211,-1457.79,0.00032876,14]
[332598078,1721328647220,-1708.26,0.00032876,14]
[332598080,1721328647229,-500.0,0.00032876,14]
[332598082,1721328647239,-500.0,0.00032876,14]
[332598084,1721328647249,-1223.65,0.00032876,14]
[332598086,1721328647259,-755.4,0.00032876,14]
[332598088,1721328647268,-2568.86,0.00032876,14]
[332598090,1721328647277,-2342.56,0.00032876,14]
[332598092,1721328647287,-500.0,0.00032876,14]
[332598094,1721328647296,-500.0,0.00032876,14]
[332598096,1721328647306,-500.0,0.00032876,14]
[332598098,1721328647315,-702.73,0.00032876,14]
[332598100,1721328647324,-187.038047,0.00032876,7]
[332598102,1721328647336,-786.55,0.00032876,14]
[332598104,1721328647345,-500.0,0.00032876,14]
[332598106,1721328647354,-187.038047,0.00032876,7]
[332598108,1721328647364,-2755.59,0.00032876,14]
[332598110,1721328647373,-187.038047,0.00032876,7]
[332598112,1721328647382,-500.0,0.00032876,14]
[332598114,1721328647392,-2434.51,0.00032876,14]
[332598116,1721328647402,-187.038047,0.00032876,7]
[332598118,1721328647412,-500.0,0.00032876,14]
[332598120,1721328647422,-500.0,0.00032876,14]
[332598122,1721328647431,-187.038047,0.00032876,7]
[332598124,1721328647441,-187.038047,0.00032876,7]
[332598126,1721328647451,-187.038047,0.00032876,7]
[332598128,1721328647460,-187.038047,0.00032876,7]
[332598130,1721328647470,-187.038047,0.00032876,7]
[332598132,1721328647479,-500.0,0.00032876,14]
[332598134,1721328647488,-1171.81,0.00032876,14]
[332598136,1721328647498,-1097.81,0.00032876,14]
[332598138,1721328647507,-500.0,0.00032876,14]
[332598140,1721328647516,-187.038047,0.00032876,7]
[332598142,1721328647526,-1276.7,0.00032876,14]
[332598144,1721328647535,-187.038047,0.00032876,7]
[332598146,1721328647544,-187.038047,0.00032876,7]
[332598148,1721328647554,-500.0,0.00032876,14]
[332598150,1721328647563,-500.0,0.00032876,14]
[332598152,1721328647572,-2757.44,0.00032876,14]
[332598154,1721328647581,-151.0,0.00032876,7]
[332598156,1721328647590,-151.0,0.00032876,7]
[332598158,1721328647600,-173.126281,0.00032876,7]
[332598160,1721328647609,-2362.31,0.00032876,14]
[332598161,1721328647618,-500.0,0.00032876,14]
[332598163,1721328647627,-500.0,0.00032876,14]
[332598165,1721328647636,-500.0,0.00032876,14]
[332598167,1721328647645,-500.0,0.00032876,14]
[332598169,1721328647654,-500.0,0.00032876,14]
[332598171,1721328647664,-500.0,0.00032876,14]
[332598173,1721328647673,-446.68288,0.00032876,7]
[332598175,1721328647682,-446.68288,0.00032876,7]
[332598177,1721328647692,-446.68288,0.00032876,7]
[332598179,1721328647702,-446.68288,0.00032876,7]
[332598180,1721328647711,-725.09,0.00032876,14]
[332598182,1721328647720,-446.68288,0.00032876,7]
[332598184,1721328647730,-500.0,0.00032876,14]
[332598186,1721328647739,-446.68288,0.00032876,7]
[332598188,1721328647749,-827.07,0.00032876,14]
[332598190,1721328647758,-500.0,0.00032876,14]
[332598192,1721328647767,-500.0,0.00032876,14]
[332598194,1721328647776,-446.68288,0.00032876,7]
[332598195,1721328647785,-500.0,0.00032876,14]
[332598197,1721328647795,-446.68288,0.00032876,7]
[332598199,1721328647803,-446.68288,0.00032876,7]
[332598201,1721328647813,-991.08,0.00032876,14]
[332598203,1721328647822,-446.68288,0.00032876,7]
[332598205,1721328647831,-446.68288,0.00032876,7]
[332598207,1721328647840,-500.0,0.00032876,14]
[332598209,1721328647850,-446.68288,0.00032876,7]
[332598211,1721328647858,-1560.15,0.00032876,14]
[332598212,1721328647868,-2039.81,0.00032876,14]
[332598214,1721328647877,-500.0,0.00032876,14]
[332598216,1721328647887,-2036.13,0.00032876,14]
[332598218,1721328647897,-500.0,0.00032876,14]
[332598220,1721328647907,-500.0,0.00032876,14]
[332598222,1721328647919,-500.0,0.00032876,14]
[332598224,1721328647933,-500.0,0.00032876,14]
[332598226,1721328647943,-1045.27,0.00032876,14]
[332598228,1721328647953,-1143.71,0.00032876,14]
[332598230,1721328647963,-151.0,0.00032876,7]
[332598232,1721328647977,-151.0,0.00032876,7]
[332598234,1721328647988,-151.0,0.00032876,7]
[332598236,1721328648001,-151.0,0.00032876,7]
[332598238,1721328648011,-151.0,0.00032876,7]
[332598240,1721328648021,-151.0,0.00032876,7]
[332598242,1721328648031,-500.0,0.00032876,14]
[332598244,1721328648041,-151.0,0.00032876,7]
[332598245,1721328648050,-500.0,0.00032876,14]
[332598247,1721328648060,-151.0,0.00032876,7]
[332598249,1721328648070,-151.0,0.00032876,7]
[332598251,1721328648080,-724.4,0.00032876,14]
[332598253,1721328648089,-151.0,0.00032876,7]
[332598255,1721328648099,-500.0,0.00032876,14]
[332598257,1721328648109,-500.0,0.00032876,14]
[332598259,1721328648119,-987.28,0.00032876,14]
[332598261,1721328648129,-1315.84,0.00032876,14]
[332598263,1721328648138,-151.0,0.00032876,7]
[332598265,1721328648147,-478.0,0.00032876,14]
[332598267,1721328648157,-151.0,0.00032876,7]
[332598269,1721328648170,-151.0,0.00032876,7]
[332598271,1721328648180,-151.0,0.00032876,7]
[332598272,1721328648190,-1552.45,0.00032876,14]
[332598273,1721328648200,-500.0,0.00032876,14]
[332598274,1721328648210,-151.0,0.00032876,7]
[332598275,1721328648220,-500.0,0.00032876,14]
[332598276,1721328648231,-151.0,0.00032876,7]
[332598277,1721328648241,-500.0,0.00032876,14]
[332598278,1721328648251,-151.0,0.00032876,7]
[332598279,1721328648262,-500.0,0.00032876,14]
[332598280,1721328648273,-151.0,0.00032876,7]
[332598281,1721328648283,-151.0,0.00032876,7]
[332598282,1721328648294,-252.36675,0.00032876,7]
[332598283,1721328648303,-500.0,0.00032876,14]
[332598284,1721328648314,-675.36,0.00032876,14]
[332598285,1721328648323,-2618.58,0.00032876,14]
[332598286,1721328648333,-500.0,0.00032876,14]
[332598287,1721328648343,-500.0,0.00032876,14]
[332598288,1721328648355,-500.0,0.00032876,14]
[332598289,1721328648364,-500.0,0.00032876,14]
[332598291,1721328648374,-500.0,0.00032876,14]
[332598292,1721328648383,-500.0,0.00032876,14]
[332598294,1721328648392,-151.0,0.00032876,7]
[332598296,1721328648402,-528.61,0.00032876,14]
[332598298,1721328648413,-151.0,0.00032876,7]
[332598300,1721328648423,-500.0,0.00032876,14]
[332598303,1721328648433,-151.0,0.00032876,7]
[332598305,1721328648444,-151.0,0.00032876,7]
[332598307,1721328648453,-151.0,0.00032876,7]
[332598309,1721328648462,-151.0,0.00032876,7]
[332598311,1721328648471,-2077.16,0.00032876,14]
[332598313,1721328648481,-3397.67,0.00032876,14]
[332598315,1721328648490,-500.0,0.00032876,14]
[332598317,1721328648500,-500.0,0.00032876,14]
[332598319,1721328648511,-500.0,0.00032876,14]
[332598321,1721328648520,-2000.0,0.00032876,2]
[332598322,1721328648530,-970.71,0.00032876,14]
[332598324,1721328648540,-3810.7,0.00032876,14]
[332598326,1721328648549,-200.0,0.00032876,2]
[332598328,1721328648559,-500.0,0.00032876,14]
[332598330,1721328648569,-500.0,0.00032876,14]
[332598332,1721328648580,-500.0,0.00032876,14]
[332598334,1721328648589,-2732.05,0.00032876,14]
[332598336,1721328648599,-2019.98,0.00032876,14]
[332598338,1721328648609,-500.0,0.00032876,14]
[332598340,1721328648618,-500.0,0.00032876,14]
[332598342,1721328648628,-500.0,0.00032876,14]
[332598344,1721328648638,-1486.42,0.00032876,14]
[332598346,1721328648648,-500.0,0.00032876,14]
[332598348,1721328648659,-937.5,0.00032876,14]
[332598350,1721328648671,-512.96,0.00032876,14]
[332598352,1721328648682,-500.0,0.00032876,14]
[332598354,1721328648692,-500.0,0.00032876,14]
[332598356,1721328648702,-2565.98,0.00032876,14]
[332598358,1721328648712,-500.0,0.00032876,14]
[332598360,1721328648722,-500.0,0.00032876,14]
[332598362,1721328648733,-500.0,0.00032876,14]
[332598364,1721328648743,-1925.34,0.00032876,14]
[332598366,1721328648754,-500.0,0.00032876,14]
[332598368,1721328648764,-197.61026,0.00032876,7]
[332598370,1721328648775,-197.61026,0.00032876,7]
[332598372,1721328648787,-197.61026,0.00032876,7]
[332598374,1721328648797,-197.61026,0.00032876,7]
[332598376,1721328648807,-500.0,0.00032876,14]
[332598378,1721328648818,-500.0,0.00032876,14]
[332598380,1721328648828,-197.61026,0.00032876,7]
[332598382,1721328648840,-197.61026,0.00032876,7]
[332598384,1721328648850,-1362.52,0.00032876,14]
[332598386,1721328648861,-500.0,0.00032876,14]
[332598388,1721328648871,-500.0,0.00032876,14]
[332598390,1721328648884,-1322.4,0.00032876,14]
[332598392,1721328648894,-197.61026,0.00032876,7]
[332598394,1721328648905,-197.61026,0.00032876,7]
[332598397,1721328648918,-197.61026,0.00032876,7]
[332598399,1721328648932,-360.84125517,0.00032876,14]
[332598401,1721328648943,-197.61026,0.00032876,7]
[332598403,1721328648953,-500.0,0.00032876,14]
[332598405,1721328648964,-197.61026,0.00032876,7]
[332598407,1721328648976,-197.61026,0.00032876,7]
[332598409,1721328648991,-2203.16,0.00032876,14]
[332598411,1721328649003,-500.0,0.00032876,14]
[332598413,1721328649015,-826.34,0.00032876,14]
[332598415,1721328649027,-500.0,0.00032876,14]
[332598418,1721328649038,-500.0,0.00032876,14]
[332598420,1721328649050,-1000.0,0.00032876,14]
[332598422,1721328649060,-691.72,0.00032876,14]
[332598424,1721328649071,-992.35,0.00032876,14]
[332598426,1721328649080,-1009.43,0.00032876,14]
[332598428,1721328649091,-614.12,0.00032876,14]
[332598429,1721328649101,-500.0,0.00032876,14]
[332598432,1721328649112,-500.0,0.00032876,14]
[332598433,1721328649121,-500.0,0.00032876,14]
[332598435,1721328649131,-500.0,0.00032876,14]
[332598437,1721328649142,-2161.64,0.00032876,14]
[332598439,1721328649152,-1102.78,0.00032876,14]
[332598442,1721328649164,-151.0,0.00032876,7]
[332598443,1721328649173,-151.0,0.00032876,7]
[332598446,1721328649184,-500.0,0.00032876,14]
[332598448,1721328649195,-500.0,0.00032876,14]
[332598450,1721328649205,-500.0,0.00032876,14]
[332598452,1721328649216,-593.96,0.00032876,14]
[332598454,1721328649226,-151.0,0.00032876,7]
[332598455,1721328649237,-500.0,0.00032876,14]
[332598457,1721328649248,-500.0,0.00032876,14]
[332598459,1721328649259,-500.0,0.00032876,14]
[332598462,1721328649269,-329.593669,0.00032876,14]
[332598464,1721328649280,-1245.71,0.00032876,14]
[332598466,1721328649291,-625.27,0.00032876,14]
[332598468,1721328649302,-500.0,0.00032876,14]
[332598470,1721328649313,-500.0,0.00032876,14]
[332598472,1721328649323,-500.0,0.00032876,14]
[332598474,1721328649334,-2685.94,0.00032876,14]
[332598476,1721328649345,-3640.56,0.00032876,14]
[332598478,1721328649357,-500.0,0.00032876,14]
[332598480,1721328649369,-600.9630446,0.00032876,14]
[332598482,1721328649380,-500.0,0.00032876,14]
[332598484,1721328649391,-151.0,0.00032876,7]
[332598486,1721328649402,-151.0,0.00032876,7]
[332598489,1721328649414,-151.0,0.00032876,7]
[332598491,1721328649426,-151.0,0.00032876,7]
[332598493,1721328649436,-1396.92,0.00032876,14]
[332598495,1721328649447,-309.920976,0.00032876,7]
[332598497,1721328649458,-309.920976,0.00032876,7]
[332598499,1721328649468,-500.0,0.00032876,14]
[332598501,1721328649479,-309.920976,0.00032876,7]
[332598503,1721328649490,-309.920976,0.00032876,7]
[332598505,1721328649500,-309.920976,0.00032876,7]
[332598506,1721328649510,-309.920976,0.00032876,7]
[332598509,1721328649520,-2800.69,0.00032876,14]
[332598510,1721328649530,-1162.59,0.00032876,14]
[332598512,1721328649540,-309.920976,0.00032876,7]
[332598514,1721328649550,-309.920976,0.00032876,7]
[332598516,1721328649561,-500.0,0.00032876,14]
[332598518,1721328649571,-309.920976,0.00032876,7]
[332598520,1721328649582,-309.920976,0.00032876,7]
[332598522,1721328649592,-500.0,0.00032876,14]
[332598524,1721328649602,-500.0,0.00032876,14]
[332598526,1721328649612,-500.0,0.00032876,14]
[332598528,1721328649622,-309.920976,0.00032876,7]
[332598530,1721328649632,-151.0,0.00032876,7]
[332598532,1721328649642,-642.81015812,0.00032876,14]
[332598534,1721328649652,-3429.61,0.00032876,14]
[332598536,1721328649664,-309.920976,0.00032876,7]
[332598538,1721328649675,-151.0,0.00032876,7]
[332598541,1721328649686,-309.920976,0.00032876,7]
[332598543,1721328649696,-151.0,0.00032876,7]
[332598545,1721328649707,-151.0,0.00032876,7]
[332598547,1721328649717,-309.920976,0.00032876,7]
[332598549,1721328649727,-309.920976,0.00032876,7]
[332598551,1721328649738,-151.0,0.00032876,7]
[332598553,1721328649747,-151.0,0.00032876,7]
[332598555,1721328649757,-309.920976,0.00032876,7]
[332598557,1721328649767,-500.0,0.00032876,14]
[332598559,1721328649777,-151.0,0.00032876,7]
[332598561,1721328649786,-151.0,0.00032876,7]
[332598563,1721328649796,-3014.65,0.00032876,14]
[332598565,1721328649806,-1775.63,0.00032876,14]
[332598566,1721328649816,-500.0,0.00032876,14]
[332598568,1721328649826,-151.0,0.00032876,7]
[332598571,1721328649837,-151.0,0.00032876,7]
[332598573,1721328649847,-151.0,0.00032876,7]
[332598575,1721328649858,-151.0,0.00032876,7]
[332598577,1721328649868,-242.297921,0.00032876,7]
[332598579,1721328649878,-1000.0,0.00032876,30]
[332598581,1721328649888,-778.95,0.00032876,14]
[332598583,1721328649898,-1000.0,0.00032876,30]
[332598585,1721328649908,-664.85,0.00032876,14]
[332598587,1721328649920,-1000.0,0.00032876,30]
[332598589,1721328649934,-1000.0,0.00032876,30]
[332598591,1721328649944,-1000.0,0.00032876,30]
[332598593,1721328649954,-1000.0,0.00032876,30]
[332598595,1721328649966,-500.0,0.00032876,14]
[332598597,1721328649976,-808.49,0.00032876,14]
[332598599,1721328649987,-973.44,0.00032876,30]
[332598601,1721328649998,-2696.36,0.00032876,14]
[332598603,1721328650010,-500.0,0.00032876,14]
[332598605,1721328650021,-1249.7,0.00032876,14]
[332598607,1721328650030,-500.0,0.00032876,14]
[332598609,1721328650041,-1186.98,0.00032876,14]
[332598611,1721328650051,-500.0,0.00032876,14]
[332598613,1721328650061,-500.0,0.00032876,14]
[332598615,1721328650071,-500.0,0.00032876,14]
[332598617,1721328650081,-711.78517,0.00032876,2]
[332598619,1721328650091,-500.0,0.00032876,14]
[332598621,1721328650101,-1697.12,0.00032876,14]
[332598623,1721328650112,-500.0,0.00032876,14]
[332598625,1721328650122,-1584.1,0.00032876,14]
[332598627,1721328650132,-500.0,0.00032876,14]
[332598630,1721328650142,-500.0,0.00032876,14]
[332598632,1721328650152,-500.0,0.00032876,14]
[332598634,1721328650162,-1045.18,0.00032876,14]
[332598636,1721328650172,-945.21,0.00032876,14]
[332598637,1721328650182,-500.0,0.00032876,14]
[332598639,1721328650192,-700.92,0.00032876,14]
[332598641,1721328650202,-1376.5,0.00032876,14]
[332598643,1721328650212,-500.0,0.00032876,14]
[332598646,1721328650222,-968.33,0.00032876,14]
[332598647,1721328650232,-2420.58,0.00032876,14]
[332598649,1721328650241,-500.0,0.00032876,14]
[332598651,1721328650251,-500.0,0.00032876,14]
[332598653,1721328650260,-501.45,0.00032876,14]
[332598655,1721328650270,-500.0,0.00032876,14]
[332598657,1721328650280,-500.0,0.00032876,14]
[332598659,1721328650290,-1453.0,0.00032876,14]
[332598661,1721328650299,-500.0,0.00032876,14]
[332598663,1721328650309,-500.0,0.00032876,14]
[332598665,1721328650319,-500.0,0.00032876,14]
[332598667,1721328650328,-500.0,0.00032876,14]
[332598669,1721328650337,-2895.62,0.00032876,14]
[332598671,1721328650347,-1209.36,0.00032876,14]
[332598673,1721328650357,-500.0,0.00032876,14]
[332598675,1721328650366,-500.0,0.00032876,14]
[332598677,1721328650375,-502.37249923,0.00032876,14]
[332598678,1721328650385,-1206.72,0.00032876,14]
[332598680,1721328650395,-3558.48,0.00032876,14]
[332598682,1721328650405,-640.54362876,0.00032876,14]
[332598684,1721328650414,-500.0,0.00032876,14]
[332598686,1721328650424,-500.0,0.00032876,14]
[332598688,1721328650433,-569.78,0.00032876,14]
[332598690,1721328650443,-500.0,0.00032876,14]
[332598692,1721328650453,-151.0,0.00032876,7]
[332598694,1721328650463,-877.24,0.00032876,14]
[332598696,1721328650472,-151.0,0.00032876,7]
[332598698,1721328650483,-151.0,0.00032876,7]
[332598700,1721328650492,-151.0,0.00032876,7]
[332598702,1721328650502,-697.96,0.00032876,14]
[332598704,1721328650511,-500.0,0.00032876,14]
[332598706,1721328650523,-500.0,0.00032876,14]
[332598708,1721328650533,-507.58,0.00032876,14]
[332598710,1721328650544,-1580.24,0.00032876,14]
[332598712,1721328650553,-500.0,0.00032876,14]
[332598714,1721328650563,-500.0,0.00032876,14]
[332598716,1721328650573,-1240.22,0.00032876,14]
[332598718,1721328650584,-500.0,0.00032876,14]
[332598721,1721328650596,-500.0,0.00032876,14]
[332598723,1721328650605,-6221.13,0.00032876,14]
[332598725,1721328650616,-1313.38,0.00032876,14]
[332598727,1721328650627,-500.0,0.00032876,14]
[332598729,1721328650636,-367.8903004,0.00032876,14]
[332598731,1721328650646,-500.0,0.00032876,14]
[332598733,1721328650656,-151.0,0.00032876,7]
[332598735,1721328650666,-1472.77,0.00032876,14]
[332598737,1721328650675,-2277.64,0.00032876,14]
[332598739,1721328650685,-500.0,0.00032876,14]
[332598741,1721328650695,-151.0,0.00032876,7]
[332598743,1721328650705,-151.0,0.00032876,7]
[332598745,1721328650714,-151.0,0.00032876,7]
[332598747,1721328650724,-500.0,0.00032876,14]
[332598749,1721328650734,-151.0,0.00032876,7]
[332598751,1721328650744,-2042.44,0.00032876,14]
[332598753,1721328650754,-151.0,0.00032876,7]
[332598755,1721328650764,-500.0,0.00032876,14]
[332598757,1721328650775,-151.0,0.00032876,7]
[332598759,1721328650786,-151.0,0.00032876,7]
[332598761,1721328650796,-517.35680584,0.00032876,14]
[332598763,1721328650806,-151.0,0.00032876,7]
[332598765,1721328650816,-500.0,0.00032876,14]
[332598767,1721328650826,-500.0,0.00032876,14]
[332598769,1721328650837,-1800.34,0.00032876,14]
[332598771,1721328650847,-3211.71,0.00032876,14]
[332598773,1721328650857,-661.91,0.00032876,14]
[332598775,1721328650867,-500.0,0.00032876,14]
[332598777,1721328650877,-655.13,0.00032876,14]
[332598779,1721328650888,-500.0,0.00032876,14]
[332598781,1721328650898,-151.0,0.00032876,7]
[332598783,1721328650909,-500.0,0.00032876,14]
[332598785,1721328650922,-151.0,0.00032876,7]
[332598788,1721328650936,-151.0,0.00032876,7]
[332598789,1721328650946,-236.268783,0.00032876,7]
[332598792,1721328650956,-2239.11,0.00032876,14]
[332598794,1721328650968,-500.0,0.00032876,14]
[332598796,1721328650980,-897.92,0.00032876,14]
[332598798,1721328650991,-500.0,0.00032876,14]
[332598800,1721328651001,-1958.24,0.00032876,14]
[332598802,1721328651013,-1944.66,0.00032876,14]
[332598804,1721328651023,-2643.73,0.00032876,14]
[332598806,1721328651033,-618.46,0.00032876,14]
[332598808,1721328651043,-500.0,0.00032876,14]
[332598810,1721328651053,-500.0,0.00032876,14]
[332598812,1721328651063,-500.0,0.00032876,14]
[332598814,1721328651073,-1284.25,0.00032876,14]
[332598816,1721328651083,-151.0,0.00032876,7]
[332598818,1721328651093,-151.0,0.00032876,7]
[332598820,1721328651103,-635.83525173,0.00032876,14]
[332598822,1721328651112,-151.0,0.00032876,7]
[332598824,1721328651122,-500.0,0.00032876,14]
[332598826,1721328651133,-500.0,0.00032876,14]
[332598827,1721328651143,-277.43366,0.00032876,7]
[332598829,1721328651153,-392.26234598,0.00032876,14]
[332598832,1721328651165,-998.92,0.00032876,14]
[332598833,1721328651175,-1628.83,0.00032876,14]
[332598835,1721328651185,-2479.23,0.00032876,14]
[332598837,1721328651195,-500.0,0.00032876,14]
[332598839,1721328651205,-500.0,0.00032876,14]
[332598841,1721328651216,-151.0,0.00032876,7]
[332598843,1721328651226,-2098.11,0.00032876,14]
[332598845,1721328651237,-568.67619364,0.00032876,14]
[332598847,1721328651248,-1400.66,0.00032876,14]
[332598849,1721328651258,-833.29,0.00032876,14]
[332598851,1721328651269,-3863.58,0.00032876,14]
[332598853,1721328651279,-1547.58,0.00032876,14]
[332598855,1721328651289,-500.0,0.00032876,14]
[332598857,1721328651300,-500.0,0.00032876,14]
[332598859,1721328651309,-500.0,0.00032876,14]
[332598861,1721328651319,-500.0,0.00032876,14]
[332598863,1721328651330,-500.0,0.00032876,14]
[332598865,1721328651339,-500.0,0.00032876,14]
[332598867,1721328651349,-14531.26,0.00032876,14]
[332598869,1721328651360,-5004.62,0.00032876,14]
[332598871,1721328651370,-500.0,0.00032876,14]
[332598873,1721328651380,-1581.86,0.00032876,14]
[332598875,1721328651391,-500.0,0.00032876,14]
[332598877,1721328651401,-151.0,0.00032876,7]
[332598879,1721328651412,-151.0,0.00032876,7]
[332598881,1721328651425,-500.0,0.00032876,14]
[332598883,1721328651435,-151.0,0.00032876,7]
[332598885,1721328651445,-833.1,0.00032876,14]
[332598887,1721328651455,-151.0,0.00032876,7]
[332598889,1721328651465,-151.0,0.00032876,7]
[332598891,1721328651475,-151.0,0.00032876,7]
[332598893,1721328651486,-613.97,0.00032876,14]
[332598895,1721328651496,-151.0,0.00032876,7]
[332598897,1721328651506,-11834.56,0.00032876,14]
[332598899,1721328651516,-151.0,0.00032876,7]
[332598901,1721328651527,-291.031177,0.00032876,7]
[332598903,1721328651537,-291.031177,0.00032876,7]
[332598904,1721328651547,-291.031177,0.00032876,7]
[332598906,1721328651558,-285.25626235,0.00032876,14]
[332598908,1721328651568,-291.031177,0.00032876,7]
[332598910,1721328651578,-500.0,0.00032876,14]
[332598912,1721328651588,-1035.4,0.00032876,14]
[332598914,1721328651598,-291.031177,0.00032876,7]
[332598916,1721328651609,-2036.76,0.00032876,14]